bitfinex/quotes_ETHUSD_20220213
["timestamp","ask_amount","ask_price","bid_price","bid_amount"]
[1644717762646,1.0621,2919.3,2919.0,0.00890544]
[1644717762855,3.4,2919.2,2919.0,0.00890544]
[1644717763547,3.4,2919.2,2918.9,0.489]
[1644717763748,3.4,2919.2,2919.0,0.00903001]
[1644717764595,3.4,2919.2,2918.9,0.489]
[1644717765096,3.4,2919.2,2919.0,0.00903001]
[1644717765897,3.4,2919.2,2918.9,0.489]
[1644717766100,3.4,2919.2,2919.0,0.00903001]
[1644717767101,3.4,2919.2,2918.9,0.489]
[1644717767301,3.4,2919.2,2919.0,0.00901744]
[1644717768347,3.4,2919.2,2918.6,0.00305702]
[1644717768546,3.4,2919.2,2919.0,0.00901744]
[1644717769348,0.84229641,2919.1,2919.0,0.00901744]
[1644717769547,0.84229641,2919.1,2918.5,0.00305702]
[1644717769747,0.84229641,2919.1,2919.0,0.00901744]
[1644717769950,4.37040767,2919.1,2919.0,0.00901744]
[1644717770149,5.58180767,2919.1,2919.0,0.00901744]
[1644717770348,2.05369641,2919.1,2919.0,0.00901744]
[1644717770755,5.49505029,2919.1,2918.2,0.00305702]
[1644717770947,5.49505029,2919.1,2918.9,0.00901877]
[1644717770948,5.66635029,2919.1,2918.9,0.00901877]
[1644717771148,2.05369641,2919.1,2918.9,0.00901877]
[1644717771596,5.57113627,2919.1,2918.9,0.00901877]
[1644717771797,2.05369641,2919.1,2918.3,0.00305702]
[1644717771998,5.63872397,2919.1,2918.3,0.00305702]
[1644717772199,5.63872397,2919.1,2918.4,0.17209129]
[1644717772399,0.97214822,2918.6,2918.5,0.00305702]
[1644717772599,0.97214822,2918.6,2918.4,0.17209129]
[1644717774004,1.2114,2919.1,2918.4,0.17209129]
[1644717774204,1.2114,2919.1,2918.5,0.00305702]
[1644717775006,1.10279431,2918.9,2918.5,0.00305702]
[1644717775648,1.10279431,2918.9,2918.6,0.00975231]
[1644717776052,1.2114,2919.1,2918.6,0.00975231]
[1644717776249,3.5364207,2919.0,2918.6,0.00975231]
[1644717776453,1.2114,2919.1,2918.6,0.00975231]
[1644717776648,1.2114,2919.1,2918.5,0.00305702]
[1644717776851,1.2114,2919.1,2918.7,0.00975217]
[1644717777053,0.83920154,2918.8,2918.7,0.00975217]
[1644717777857,0.83920154,2918.8,2918.3,0.00305702]
[1644717777858,4.69804255,2918.8,2918.3,0.00305702]
[1644717778059,4.69804255,2918.8,2918.6,0.00949493]
[1644717778260,5.23566346,2918.7,2918.6,0.00949493]
[1644717778458,8.58726346,2918.7,2918.6,0.00949493]
[1644717779106,8.58726346,2918.7,2917.5,0.00305702]
[1644717779107,8.58726346,2918.7,2917.5,0.17514831]
[1644717779307,8.58726346,2918.7,2918.5,9.507e-05]
[1644717779512,8.58726346,2918.7,2917.6,0.00305702]
[1644717779513,0.0008,2918.2,2917.6,0.00305702]
[1644717779711,0.0008,2918.2,2917.4,0.25]
[1644717779712,3.3,2918.0,2917.4,0.25]
[1644717779913,1.62872309,2917.9,2916.6,8.26]
[1644717780113,1.45742309,2917.8,2916.6,8.26]
[1644717780408,1.02981131,2916.9,2916.6,8.26]
[1644717780609,3.7979,2917.7,2916.7,0.17209129]
[1644717780811,9.1285,2917.9,2916.8,0.489]
[1644717781011,9.1285,2917.9,2916.9,3.5]
[1644717781313,9.1285,2917.9,2917.0,0.489]
[1644717781314,0.4186,2917.9,2917.0,0.489]
[1644717781508,1.16975781,2917.8,2917.2,1.09324349]
[1644717781709,1.16975781,2917.8,2917.2,0.789]
[1644717781907,1.16975781,2917.8,2917.3,0.17209129]
[1644717782309,1.16975781,2917.8,2917.3,3.67209129]
[1644717782508,1.16975781,2917.8,2917.3,0.17209129]
[1644717782762,1.16975781,2917.8,2917.4,0.17209129]
[1644717782965,1.16975781,2917.8,2917.4,0.18161818]
[1644717783865,1.16975781,2917.8,2917.0,0.17209129]
[1644717784063,1.16975781,2917.8,2917.5,0.00952682]
[1644717785062,4.56975781,2917.8,2917.0,0.17209129]
[1644717785262,4.56975781,2917.8,2917.5,0.00950497]
[1644717786262,4.56975781,2917.8,2917.1,1.04662992]
[1644717786263,4.56975781,2917.8,2917.1,1.00860436]
[1644717786500,4.56975781,2917.8,2917.5,0.00950497]
[1644717787502,4.56975781,2917.8,2917.2,0.17209129]
[1644717787900,4.56975781,2917.8,2917.5,0.00950497]
[1644717788703,4.56975781,2917.8,2917.2,0.17209129]
[1644717788903,4.56975781,2917.8,2917.5,0.00950642]
[1644717789905,4.56975781,2917.8,2917.2,0.17209129]
[1644717790143,4.56975781,2917.8,2917.5,0.00950642]
[1644717791243,4.56975781,2917.8,2916.9,4.5854606]
[1644717791443,4.56975781,2917.8,2917.5,0.00950642]
[1644717792248,4.56975781,2917.8,2917.0,3.00195547]
[1644717792446,4.56975781,2917.8,2917.0,3.49386132]
[1644717792648,4.56975781,2917.8,2917.5,0.00950633]
[1644717793553,4.56975781,2917.8,2917.0,3.49386132]
[1644717793753,4.56975781,2917.8,2917.5,0.00950633]
[1644717794605,4.56975781,2917.8,2917.0,2.50631479]
[1644717795002,4.56975781,2917.8,2917.5,0.00950633]
[1644717795806,4.56975781,2917.8,2917.1,0.00296289]
[1644717796205,4.56975781,2917.8,2917.5,0.00950634]
[1644717797105,4.56975781,2917.8,2917.1,0.00296289]
[1644717797307,4.56975781,2917.8,2917.5,0.00950634]
[1644717798350,4.56975781,2917.8,2917.1,0.00296289]
[1644717798551,4.56975781,2917.8,2917.5,0.00950634]
[1644717799554,4.56975781,2917.8,2917.1,0.00296289]
[1644717799853,3.4,2917.8,2917.5,0.00950634]
[1644717800653,3.4,2917.8,2917.2,0.00296289]
[1644717800852,4.38668828,2917.8,2917.2,0.00296289]
[1644717801154,4.38668828,2917.8,2917.5,0.00950634]
[1644717801805,4.38668828,2917.8,2917.2,0.00296289]
[1644717803006,4.38537656,2917.8,2917.3,0.84644746]
[1644717803207,4.38537656,2917.8,2917.3,0.84941035]
[1644717803706,4.38537656,2917.8,2917.3,0.00296289]
[1644717803910,4.38537656,2917.8,2917.1,0.17505418]
[1644717804108,4.38537656,2917.8,2917.1,0.17347479]
[1644717805751,4.38537656,2917.8,2917.3,0.00950118]
[1644717806752,4.38537656,2917.8,2917.2,0.00296289]
[1644717806954,4.38537656,2917.8,2917.4,0.00974289]
[1644717807956,3.39868828,2917.8,2917.2,0.00296289]
[1644717808158,3.39868828,2917.8,2917.5,0.00974282]
[1644717808998,3.39868828,2917.8,2917.2,0.00296289]
[1644717809199,1.16478551,2917.7,2917.2,0.00296289]
[1644717809405,1.16478551,2917.7,2917.5,0.00974275]
[1644717810204,1.16478551,2917.7,2917.2,0.00296289]
[1644717810604,1.16478551,2917.7,2917.5,0.00948483]
[1644717811409,1.16478551,2917.7,2917.2,0.00296289]
[1644717811410,3.5094086,2917.6,2917.2,0.00296289]
[1644717811606,3.6807086,2917.6,2917.0,0.00296289]
[1644717811805,4.8793086,2917.6,2917.5,0.00948483]
[1644717812004,0.01896965,2917.4,2917.0,0.03794502]
[1644717812204,3.53031777,2917.4,2917.0,0.03794502]
[1644717812646,3.53031777,2917.4,2916.5,0.00296289]
[1644717812852,0.1713,2917.3,2916.5,0.00296289]
[1644717813650,0.94430178,2917.0,2916.5,0.00296289]
[1644717814249,0.94430178,2917.0,2916.8,0.00950305]
[1644717814450,0.01896965,2917.4,2916.8,0.00950305]
[1644717815057,0.01896965,2917.4,2916.5,0.00296289]
[1644717815255,0.1713,2917.3,2917.0,0.00950277]
[1644717815454,0.1713,2917.3,2916.5,0.03505391]
[1644717815754,0.489,2917.2,2916.5,0.03505391]
[1644717815953,0.1713,2917.1,2916.5,0.03505391]
[1644717816152,0.90284074,2917.0,2916.5,0.03505391]
[1644717816407,0.90284074,2917.0,2915.9,0.05301289]
[1644717816408,0.1713,2916.9,2915.9,0.05301289]
[1644717816595,5.5573,2916.9,2915.9,0.05301289]
[1644717816794,4.4408,2916.8,2916.0,0.04263176]
[1644717816994,0.1713,2916.7,2916.0,0.04263176]
[1644717817394,1.09227344,2916.1,2916.0,0.04263176]
[1644717818000,7.56522173,2916.7,2916.0,0.04263176]
[1644717818200,3.9237,2916.7,2916.0,0.04263176]
[1644717818703,3.7759811,2916.6,2916.0,0.04263176]
[1644717818901,3.4,2916.1,2916.0,0.04263176]
[1644717823052,7.11360759,2916.1,2916.0,0.04263176]
[1644717824300,7.11360759,2916.1,2915.1,0.00295515]
[1644717824301,1.0407783,2915.8,2915.1,0.00295515]
[1644717824695,1.0407783,2915.8,2914.6,1.50119497]
[1644717824696,0.1715,2915.7,2914.6,0.06138735]
[1644717824899,0.94475731,2914.9,2914.6,0.06138735]
[1644717825098,0.1715,2915.7,2914.6,0.06138735]
[1644717825099,3.6715,2915.7,2914.6,0.06138735]
[1644717825297,0.1715,2915.7,2914.6,0.06138735]
[1644717826297,1.10243125,2915.4,2914.6,0.06138735]
[1644717827199,1.10243125,2915.4,2914.9,0.86773871]
[1644717827397,7.1078,2915.8,2914.9,0.87172357]
[1644717827647,3.9579,2915.8,2914.9,0.87172357]
[1644717827850,3.9579,2915.8,2914.9,0.00398486]
[1644717828054,3.68772727,2915.7,2914.9,0.00398486]
[1644717828250,3.68772727,2915.7,2914.7,0.489]
[1644717828651,0.0101101,2915.6,2915.2,0.01011163]
[1644717828852,1.09954074,2915.5,2915.2,0.01011163]
[1644717829550,1.09954074,2915.5,2914.7,0.489]
[1644717829751,3.57787958,2915.4,2914.7,0.489]
[1644717829953,1.09954074,2915.5,2914.7,0.489]
[1644717829954,1.09954074,2915.5,2915.2,0.01011163]
[1644717830352,3.58801417,2915.4,2915.2,0.01011163]
[1644717830556,3.4,2915.4,2915.2,0.01011163]
[1644717830752,6.93788534,2915.4,2914.6,0.06138735]
[1644717830956,3.4,2915.4,2915.2,0.00396296]
[1644717831996,3.61846058,2915.3,2914.6,0.06138735]
[1644717832194,3.61846058,2915.3,2915.2,0.0094699]
[1644717832398,1.141,2915.3,2915.2,0.0094699]
[1644717832595,4.65007049,2915.3,2915.2,0.0094699]
[1644717832798,4.2,2915.2,2914.6,0.05874374]
[1644717833001,0.84113702,2914.9,2914.6,0.05874374]
[1644717833204,0.84113702,2914.9,2914.6,0.02085725]
[1644717834602,7.5598,2915.2,2914.6,0.02085725]
[1644717834802,11.03579451,2915.2,2914.6,0.02085725]
[1644717835650,11.03579451,2915.2,2914.8,0.00395179]
[1644717835854,1.15237135,2914.9,2914.8,0.00395179]
[1644717836454,0.1715,2915.1,2914.8,0.00395179]
[1644717836649,0.1715,2915.1,2914.6,0.02085725]
[1644717836850,0.1715,2915.1,2914.7,0.00395185]
[1644717837656,6.83579451,2915.2,2914.4,0.25]
[1644717837657,3.3598,2915.2,2914.4,0.2248091]
[1644717837860,3.3598,2915.2,2914.4,0.489]
[1644717838262,3.3598,2915.2,2914.4,0.789]
[1644717838663,4.32461235,2915.2,2914.4,0.789]
[1644717838900,0.96481235,2915.2,2914.4,0.789]
[1644717839297,0.96481235,2915.2,2914.4,0.739]
[1644717839497,1.14718635,2915.3,2914.7,1.08350969]
[1644717839696,1.14718635,2915.3,2914.8,0.489]
[1644717839697,0.00618635,2915.3,2914.8,0.489]
[1644717839899,0.00618635,2915.3,2914.8,0.439]
[1644717840304,3.4,2915.4,2914.8,0.46109129]
[1644717840502,3.4,2915.4,2914.8,5.46109129]
[1644717840703,0.01013247,2915.3,2914.8,6.19220008]
[1644717840901,0.01013247,2915.3,2914.9,1.0]
[1644717841104,0.01013247,2915.3,2915.0,0.489]
[1644717841301,0.01013247,2915.3,2915.0,0.66109129]
[1644717841500,3.4,2915.4,2915.1,0.17209129]
[1644717841701,3.4,2915.4,2915.3,0.87644248]
[1644717841904,3.4,2915.4,2915.3,1.36544248]
[1644717842748,3.4,2915.4,2915.3,0.66109129]
[1644717843757,3.4,2915.4,2915.3,0.96109129]
[1644717844056,3.4,2915.4,2915.3,1.26109129]
[1644717844252,3.4,2915.4,2915.3,2.26026374]
[1644717844655,0.00954917,2915.5,2915.4,4.2]
[1644717844858,0.1715,2916.5,2915.5,5.01429]
[1644717845055,0.1713,2917.0,2915.6,0.6603]
[1644717845256,3.81090113,2917.0,2915.6,1.66400008]
[1644717845457,0.1713,2917.0,2915.7,0.00290879]
[1644717845658,0.85204996,2916.6,2915.9,0.95380805]
[1644717845857,0.85204996,2916.6,2915.8,0.489]
[1644717845858,0.85204996,2916.6,2916.0,0.49190879]
[1644717846056,0.85204996,2916.6,2916.0,0.00290879]
[1644717846267,0.85204996,2916.6,2915.9,0.66109129]
[1644717846501,0.85204996,2916.6,2916.0,0.00290879]
[1644717846701,0.85204996,2916.6,2915.9,0.61400008]
[1644717846702,2.6,2916.5,2915.9,0.61400008]
[1644717846901,2.6,2916.5,2916.0,0.17209129]
[1644717847901,0.00959299,2916.4,2916.0,0.17209129]
[1644717848702,0.85204996,2916.6,2916.0,0.17209129]
[1644717848907,0.00959305,2916.3,2916.0,0.17209129]
[1644717850002,0.85204996,2916.6,2916.0,0.17209129]
[1644717850246,0.00957913,2916.3,2916.0,0.17209129]
[1644717851151,0.85204996,2916.6,2916.0,0.17209129]
[1644717851555,0.00957913,2916.3,2916.0,0.17209129]
[1644717852351,0.85204996,2916.6,2916.0,0.17209129]
[1644717852551,0.00957913,2916.3,2916.0,0.17209129]
[1644717852751,3.40957913,2916.3,2916.0,0.17209129]
[1644717853554,3.4,2916.3,2916.0,0.17209129]
[1644717853756,3.40958009,2916.3,2916.0,0.17209129]
[1644717856214,3.37031329,2916.3,2916.1,0.489]
[1644717856414,0.58830981,2916.3,2916.2,9.613]
[1644717856612,0.58830981,2916.3,2916.2,10.27409129]
[1644717856815,0.58830981,2916.3,2916.2,7.77409129]
[1644717857854,0.53923712,2916.3,2916.2,7.77409129]
[1644717858455,0.53923712,2916.3,2916.2,11.26479872]
[1644717859656,0.53923712,2916.3,2916.2,11.21479872]
[1644717859856,0.52965703,2916.3,2916.2,11.21479872]
[1644717860054,0.52965703,2916.3,2916.2,11.51479872]
[1644717860856,5.3368,2917.1,2916.3,5.05028801]
[1644717861060,1.1322,2917.6,2916.8,0.85028801]
[1644717861061,0.1713,2917.6,2916.8,0.85028801]
[1644717861263,0.1713,2917.6,2917.0,0.85028801]
[1644717861499,0.1713,2917.6,2917.2,0.85028801]
[1644717861696,0.1713,2917.6,2917.1,0.489]
[1644717861697,0.1713,2917.6,2917.3,1.33928801]
[1644717861898,0.1713,2917.6,2917.3,2.37541144]
[1644717863100,0.1713,2917.6,2917.3,2.67541144]
[1644717863301,3.41896965,2917.4,2917.3,3.67541144]
[1644717863502,3.41896965,2917.4,2917.3,3.54750273]
[1644717863701,3.41896965,2917.4,2917.3,3.84750273]
[1644717863901,3.41896965,2917.4,2917.3,4.14750273]
[1644717867454,3.41896965,2917.4,2917.3,4.31880273]
[1644717867858,3.41896965,2917.4,2917.3,15.43180273]
[1644717868054,3.41896965,2917.4,2917.3,10.43180273]
[1644717868661,0.0008,2918.2,2917.5,0.85028801]
[1644717868920,9.03424656,2920.6,2918.2,0.85028801]
[1644717868921,0.1713,2919.1,2918.2,0.85028801]
[1644717869212,0.1713,2919.3,2918.5,0.85028801]
[1644717869407,3.6713,2919.5,2918.7,0.85028801]
[1644717869607,1.45748142,2919.4,2918.9,0.85028801]
[1644717869809,0.1713,2919.5,2918.9,0.85028801]
[1644717869810,0.1713,2919.5,2919.0,0.9121]
[1644717870411,0.1713,2919.5,2919.0,1.9121]
[1644717870611,3.6711,2920.0,2919.1,0.4231]
[1644717870811,0.01012031,2919.4,2919.3,0.4231]
[1644717871009,0.01012031,2919.4,2919.3,0.9121]
[1644717871810,0.1711,2920.0,2919.5,0.4231]
[1644717872010,0.1711,2920.0,2919.5,0.9121]
[1644717872210,1.45730823,2919.9,2919.5,0.9121]
[1644717872853,1.19454297,2919.9,2919.5,0.9121]
[1644717873253,0.0101197,2919.8,2919.5,0.9121]
[1644717874255,0.1711,2920.0,2919.5,0.9121]
[1644717874555,0.00946758,2919.8,2919.5,0.9121]
[1644717874854,0.00946758,2919.8,2919.6,0.4231]
[1644717875355,0.02779766,2919.9,2919.6,0.4231]
[1644717875554,0.00946752,2919.8,2919.6,0.4231]
[1644717876614,0.02779766,2919.9,2919.6,0.4231]
[1644717876814,0.02779766,2919.9,2919.8,0.4231]
[1644717877014,0.02779766,2919.9,2919.8,0.9121]
[1644717884318,0.02779766,2919.9,2919.8,1.08419129]
[1644717884520,0.02779766,2919.9,2919.8,1.38419129]
[1644717884918,0.02779766,2919.9,2919.8,2.38419129]
[1644717888458,0.02779766,2919.9,2919.8,2.08419129]
[1644717888659,0.02779766,2919.9,2919.8,2.38419129]
[1644717888860,0.02779766,2919.9,2919.8,2.55529129]
[1644717889862,0.02779766,2919.9,2919.8,1.30136807]
[1644717890059,0.02779766,2919.9,2919.8,1.47345936]
[1644717891703,3.38677539,2920.0,2919.8,1.47345936]
[1644717891909,3.38677539,2920.0,2919.9,0.489]
[1644717892104,3.37779766,2920.0,2919.9,0.489]
[1644717892308,3.37779766,2920.0,2919.9,0.66109129]
[1644717895155,0.00903273,2920.1,2919.9,10.58804211]
[1644717895356,1.195,2921.6,2920.1,3.3]
[1644717895357,0.00361612,2920.6,2920.1,3.3]
[1644717895554,0.74146586,2920.9,2920.4,6.113]
[1644717895753,3.3887,2921.2,2920.5,0.489]
[1644717895958,3.3887,2921.2,2920.8,0.87756264]
[1644717896154,8.8336,2921.5,2920.8,0.87756264]
[1644717896155,5.3336,2921.5,2920.9,0.489]
[1644717896454,1.45651634,2921.4,2920.9,0.489]
[1644717896653,5.3336,2921.5,2920.9,0.489]
[1644717896852,1.45651002,2921.4,2920.9,0.489]
[1644717897256,0.00905832,2921.3,2920.9,0.489]
[1644717898258,8.5625,2921.5,2920.9,0.489]
[1644717898464,0.00905844,2921.2,2920.9,0.489]
[1644717899108,0.00905844,2921.2,2920.9,0.66109129]
[1644717899506,8.7336,2921.5,2920.9,0.66109129]
[1644717899708,0.00905849,2921.2,2920.9,0.66109129]
[1644717900307,0.00905849,2921.2,2920.9,0.96109129]
[1644717900708,8.7336,2921.5,2920.9,0.96109129]
[1644717900906,0.00902196,2921.2,2920.9,0.96109129]
[1644717901210,0.00902196,2921.2,2921.1,1.01919641]
[1644717901408,0.00902196,2921.2,2921.1,1.50819641]
[1644717901607,0.00902196,2921.2,2921.1,1.6802877]
[1644717901807,8.5625,2921.5,2921.1,1.6802877]
[1644717902014,8.5625,2921.5,2921.1,5.30601909]
[1644717902015,0.00556263,2921.3,2921.1,5.30601909]
[1644717902211,8.5625,2921.5,2921.1,1.9802877]
[1644717902212,2.10595804,2921.5,2921.1,1.9802877]
[1644717902415,0.02224717,2921.7,2921.4,6.113]
[1644717902658,0.02224717,2921.7,2921.6,0.87689687]
[1644717902861,0.02224717,2921.7,2921.6,1.66589687]
[1644717903058,5.4247,2922.2,2921.6,1.66589687]
[1644717903258,5.4247,2922.2,2921.7,0.85535]
[1644717903465,5.4247,2922.2,2921.8,0.489]
[1644717903866,5.4247,2922.2,2922.1,0.93670421]
[1644717904059,7.3119,2922.6,2922.1,1.42570421]
[1644717904259,1.4559247,2922.5,2922.1,1.37570421]
[1644717904458,1.4559247,2922.4,2922.1,1.37570421]
[1644717904658,0.00975325,2922.3,2922.1,1.37570421]
[1644717904857,0.00975325,2922.3,2922.1,0.489]
[1644717905559,0.1711,2922.6,2922.1,0.489]
[1644717905758,0.00975319,2922.3,2922.1,0.489]
[1644717906607,0.1711,2922.7,2922.1,0.489]
[1644717906809,1.45593523,2922.6,2922.1,0.489]
[1644717907007,0.171,2922.8,2922.1,0.489]
[1644717907008,0.00975319,2922.3,2922.1,0.489]
[1644717907813,0.171,2922.8,2922.1,0.489]
[1644717908012,1.45589479,2922.7,2922.1,0.489]
[1644717908213,0.00949443,2922.3,2922.1,0.489]
[1644717908515,0.00949443,2922.3,2922.1,0.789]
[1644717908713,0.00949443,2922.3,2922.2,3.68363598]
[1644717908918,0.00949443,2922.3,2922.2,4.17263598]
[1644717909115,3.4,2922.3,2922.2,5.34472727]
[1644717909313,3.4,2922.3,2922.2,1.66109129]
[1644717909713,3.4,2922.3,2922.2,0.9634086]
[1644717909912,3.4,2922.3,2922.2,1.1082286]
[1644717910357,3.4,2922.3,2922.2,0.5972286]
[1644717911561,3.4,2922.3,2922.2,1.10421807]
[1644717911958,3.4,2922.3,2922.2,1.95939807]
[1644717912257,3.4,2922.3,2922.2,2.55939807]
[1644717912456,3.4,2922.3,2922.2,3.55939807]
[1644717913161,3.4,2922.3,2922.2,2.70421807]
[1644717913360,3.4,2922.3,2922.2,1.70421807]
[1644717913561,3.4,2922.3,2922.2,2.70421807]
[1644717914008,3.4,2922.3,2922.2,2.40421807]
[1644717914216,3.4,2922.3,2922.2,1.70421807]
[1644717914410,3.4,2922.3,2922.2,2.70421807]
[1644717915211,3.4,2922.3,2922.2,2.10421807]
[1644717915410,3.4,2922.3,2922.2,1.10421807]
[1644717915710,3.4,2922.3,2922.2,1.70421807]
[1644717916310,3.4,2922.3,2922.2,6.53898222]
[1644717916512,3.4,2922.3,2922.2,9.97238807]
[1644717917758,3.4,2922.3,2922.2,13.73922906]
[1644717917960,1.69889621,2922.3,2922.2,33.65922906]
[1644717918160,1.18489621,2922.3,2922.2,33.65922906]
[1644717918359,0.57781055,2922.3,2922.2,38.65922906]
[1644717918559,0.22207191,2922.3,2922.2,38.65922906]
[1644717918762,0.04035807,2923.1,2922.8,0.3]
[1644717918959,0.04035807,2923.1,2922.9,0.489]
[1644717919159,0.04035807,2923.1,2923.0,3.50292207]
[1644717919364,0.04035807,2923.1,2923.0,4.99192207]
[1644717919559,0.04035807,2923.1,2923.0,5.29192207]
[1644717920162,0.04035807,2923.1,2923.0,5.46401336]
[1644717920963,0.04035807,2923.1,2923.0,11.57701336]
[1644717921415,0.04035807,2923.1,2923.0,12.08991939]
[1644717922607,0.00950945,2923.2,2923.0,12.08991939]
[1644717922814,0.00950945,2923.2,2923.1,4.9262285]
[1644717923013,0.00950945,2923.2,2923.1,5.4152285]
[1644717923512,0.00361735,2923.8,2923.1,1.789]
[1644717923712,0.03803154,2923.7,2923.4,0.3]
[1644717923911,0.03803154,2923.7,2923.5,0.789]
[1644717923912,1.45544653,2923.6,2923.5,0.789]
[1644717924114,1.45544653,2923.6,2923.5,0.489]
[1644717924313,0.03803154,2923.7,2923.5,0.789]
[1644717924618,0.81408726,2924.4,2923.6,0.3]
[1644717924619,0.00361735,2924.0,2923.6,0.3]
[1644717924814,1.45903148,2924.0,2923.8,0.3]
[1644717925014,0.11099999,2923.7,2923.4,0.7]
[1644717925267,0.11099999,2923.7,2923.5,0.7]
[1644717925466,0.11099999,2923.7,2923.6,1.189]
[1644717925667,1.56642197,2923.7,2923.6,0.7]
[1644717925867,1.56642197,2923.7,2923.6,1.189]
[1644717927877,1.56642197,2923.7,2923.6,2.04381]
[1644717928577,1.56642197,2923.7,2923.6,1.189]
[1644717929207,1.56642197,2923.7,2923.6,1.789]
[1644717929412,0.11099999,2923.7,2923.6,1.789]
[1644717929609,0.11099999,2923.7,2923.6,4.03844441]
[1644717929811,0.11099999,2923.7,2923.6,4.08622352]
[1644717930005,0.11099999,2923.7,2923.6,1.83677911]
[1644717930206,0.11099999,2923.7,2923.6,0.83677911]
[1644717930408,0.11099999,2923.7,2923.6,1.83677911]
[1644717930609,0.11099999,2923.7,2923.6,0.83677911]
[1644717930810,3.51099999,2923.7,2923.6,1.53677911]
[1644717931009,3.51099999,2923.7,2923.6,0.72577911]
[1644717931209,3.51099999,2923.7,2923.6,0.23677911]
[1644717934766,3.51099999,2923.7,2922.6,8.24402]
[1644717934970,3.51099999,2923.7,2923.0,0.489]
[1644717934971,0.00361735,2923.6,2923.0,0.489]
[1644717935166,0.00361735,2923.6,2922.6,0.421]
[1644717935167,1.62999073,2923.6,2922.6,0.25]
[1644717935364,1.45537338,2923.5,2922.6,0.25]
[1644717935566,1.45537338,2923.5,2921.9,0.489]
[1644717935567,0.17461735,2923.4,2921.9,0.489]
[1644717935764,0.88948359,2923.0,2922.0,0.25]
[1644717935966,0.00361735,2922.9,2922.0,0.25]
[1644717937005,0.01011985,2922.6,2922.0,0.25]
[1644717937307,0.01011985,2922.6,2921.9,1.089]
[1644717938007,0.00361735,2922.9,2921.9,1.089]
[1644717938208,0.01012012,2922.4,2921.9,1.089]
[1644717938607,0.01012012,2922.4,2921.9,0.489]
[1644717938812,0.01012012,2922.4,2921.5,0.66]
[1644717939011,0.01012012,2922.4,2921.7,0.17209129]
[1644717939214,0.00361735,2922.6,2921.7,0.17209129]
[1644717939413,0.01012053,2922.1,2921.3,0.25]
[1644717939613,0.01012053,2922.1,2921.3,0.34319129]
[1644717939813,0.01373788,2922.1,2921.3,0.34319129]
[1644717940015,0.01012053,2922.1,2921.3,0.17209129]
[1644717940457,1.15701735,2922.4,2921.3,0.17209129]
[1644717940655,0.01012087,2921.8,2921.3,0.17209129]
[1644717940855,0.01012087,2921.8,2921.3,1.02757129]
[1644717941054,0.01012087,2921.8,2921.3,0.17209129]
[1644717941657,4.55701735,2922.4,2921.3,1.02755129]
[1644717941857,0.01012108,2921.7,2921.3,1.02755129]
[1644717942056,0.01012108,2921.7,2921.5,0.9960623]
[1644717942256,0.01012108,2921.7,2921.5,1.2960623]
[1644717942459,0.01012108,2921.7,2921.6,0.17209129]
[1644717942658,4.55701735,2922.4,2921.6,0.17209129]
[1644717942866,1.45583612,2922.3,2921.6,0.17209129]
[1644717943061,0.01012094,2921.8,2921.6,0.17209129]
[1644717943912,0.00361735,2922.3,2921.6,0.17209129]
[1644717943913,1.02050095,2922.3,2921.6,0.17209129]
[1644717944309,0.01012087,2921.8,2921.6,0.17209129]
[1644717945111,1.06097837,2922.3,2921.6,0.17209129]
[1644717945112,1.02050095,2922.3,2921.6,0.17209129]
[1644717945315,0.01012087,2921.8,2921.6,0.17209129]
[1644717946416,1.02050095,2922.3,2921.6,0.17209129]
[1644717946616,0.01012087,2921.8,2921.2,0.34319129]
[1644717946816,0.01012087,2921.8,2921.2,0.17209129]
[1644717947215,0.01012087,2921.8,2920.8,0.17209129]
[1644717947513,0.00361735,2922.1,2920.9,0.1711]
[1644717947514,0.83905179,2921.7,2920.9,0.1711]
[1644717947759,0.01012142,2921.4,2920.9,0.1711]
[1644717947959,0.01012142,2921.4,2920.9,0.34319129]
[1644717948164,0.01012142,2921.4,2920.9,0.17209129]
[1644717948562,0.01012142,2921.4,2920.9,0.66109129]
[1644717948766,0.00361735,2922.1,2920.9,0.66109129]
[1644717948962,0.00361735,2922.1,2921.0,0.1711]
[1644717949162,0.01012111,2921.4,2921.0,0.1711]
[1644717949368,0.01012111,2921.4,2921.1,0.17209129]
[1644717949965,3.7068872,2922.0,2921.1,0.17209129]
[1644717950166,0.01012132,2921.4,2921.1,0.17209129]
[1644717951166,3.55281207,2921.8,2921.1,0.17209129]
[1644717951422,3.55281207,2921.8,2920.8,0.17209129]
[1644717951423,0.01012132,2921.4,2920.8,0.17209129]
[1644717951813,3.41012132,2921.4,2920.8,0.17209129]
[1644717952414,1.137586,2921.2,2920.8,0.17209129]
[1644717952817,3.410121,2921.4,2920.8,0.17209129]
[1644717953523,3.4,2921.4,2920.8,0.17209129]
[1644717953920,1.06646304,2921.2,2920.8,0.17209129]
[1644717955659,3.49580191,2921.1,2920.8,0.17209129]
[1644717955858,3.49580191,2921.1,2920.6,0.01012381]
[1644717955859,0.1711,2921.1,2920.6,0.01012381]
[1644717956065,4.78898169,2921.1,2920.4,0.17209129]
[1644717956357,4.78898169,2921.1,2920.6,0.01012381]
[1644717956557,4.58105624,2921.1,2920.6,0.01012381]
[1644717957163,1.14,2921.1,2920.2,0.34319129]
[1644717957361,1.14,2921.1,2920.6,0.0101235]
[1644717958263,4.65979905,2921.1,2920.2,0.34319129]
[1644717958463,4.65885508,2921.1,2920.2,0.34319129]
[1644717958768,4.65885508,2921.1,2920.6,0.0101235]
[1644717958769,1.13905603,2921.1,2920.6,0.0101235]
[1644717959018,4.8255069,2921.1,2920.6,0.0101235]
[1644717959217,1.31015603,2921.1,2920.6,0.0101235]
[1644717960718,1.31015603,2921.1,2920.2,0.17209129]
[1644717960918,1.31015603,2921.1,2920.6,0.0101235]
[1644717961918,1.31015603,2921.1,2920.2,0.17209129]
[1644717961919,4.83494616,2921.1,2920.2,0.17209129]
[1644717962117,1.04880488,2920.4,2920.2,0.17209129]
[1644717963164,1.13905603,2921.1,2920.2,0.17209129]
[1644717963362,1.13905603,2921.1,2920.2,0.18221509]
[1644717963968,1.31015603,2921.1,2920.2,0.18221509]
[1644717964264,1.13905603,2921.1,2920.2,0.17209129]
[1644717964664,1.00451834,2920.7,2920.5,0.01012332]
[1644717965066,0.1711,2921.0,2920.5,0.01012332]
[1644717965466,0.1711,2921.0,2920.2,0.17209129]
[1644717965868,0.1711,2921.0,2920.6,0.01012329]
[1644717966710,0.1711,2921.0,2920.6,0.66109129]